bitfinex/quotes_SOLUSD_20251202
["timestamp","ask_amount","ask_price","bid_price","bid_amount"]
[1764686770663,8.10250095,132.7,132.67,16.308864]
[1764686770911,8.80994492,132.77,132.64,33.19136495]
[1764686771070,8.10250095,132.68,132.64,8.78]
[1764686771272,16.308864,132.78,132.65,8.80250095]
[1764686771273,0.66,132.76,132.65,8.80250095]
[1764686771580,8.10250095,132.74,132.68,8.10250095]
[1764686772076,8.10250095,132.73,132.68,8.10250095]
[1764686772244,8.10250095,132.75,132.69,8.10250095]
[1764686772437,0.66,132.76,132.68,8.76250095]
[1764686772438,8.10250095,132.74,132.68,8.76250095]
[1764686772643,8.10250095,132.73,132.68,8.76250095]
[1764686772940,8.10250095,132.73,132.67,16.308864]
[1764686773273,0.72,132.75,132.68,8.10250095]
[1764686773566,8.10250095,132.76,132.7,24.41136495]
[1764686773771,8.10250095,132.74,132.7,16.308864]
[1764686774150,8.10250095,132.76,132.7,16.308864]
[1764686774366,8.10250095,132.76,132.71,8.76250095]
[1764686774571,0.72,132.81,132.73,8.10250095]
[1764686774785,8.10250095,132.75,132.7,16.308864]
[1764686774970,8.10250095,132.76,132.7,24.41136495]
[1764686775277,0.72,132.8,132.72,16.308864]
[1764686775470,8.10250095,132.77,132.72,24.41136495]
[1764686775660,8.10250095,132.76,132.72,16.308864]
[1764686776063,8.10250095,132.76,132.7,0.66]
[1764686776260,0.72,132.77,132.72,16.308864]
[1764686776452,8.10250095,132.75,132.72,16.308864]
[1764686776657,0.72,132.83,132.74,8.10250095]
[1764686776877,7.52788152,132.84,132.79,8.10250095]
[1764686776878,8.10250095,132.84,132.79,8.10250095]
[1764686777080,0.72,132.89,132.81,8.10250095]
[1764686777383,8.10250095,132.82,132.77,9.44]
[1764686777765,8.10250095,132.83,132.78,8.76250095]
[1764686777964,0.72,132.87,132.78,0.66]
[1764686778185,0.72,132.87,132.79,0.66]
[1764686778186,8.10250095,132.85,132.79,0.66]
[1764686778394,5.29422817,132.86,132.8,5.29422817]
[1764686778682,5.29422817,132.85,132.8,5.29422817]
[1764686778878,5.29422817,132.82,132.73,26.36932117]
[1764686779087,5.29422817,132.81,132.77,16.308864]
[1764686779396,9.52994492,132.88,132.77,5.29422817]
[1764686779566,5.29422817,132.83,132.77,5.29422817]
[1764686779881,5.29422817,132.83,132.75,16.308864]
[1764686779882,5.29422817,132.8,132.75,16.308864]
[1764686780082,0.72,132.86,132.75,16.968864]
[1764686780386,8.12899118,132.83,132.77,8.12899118]
[1764686780580,0.72,132.85,132.75,16.308864]
[1764686780581,8.12899118,132.8,132.75,16.308864]
[1764686780888,0.72,132.84,132.75,24.43785518]
[1764686781064,8.12899118,132.83,132.76,0.66]
[1764686781265,8.12899118,132.85,132.79,8.12899118]
[1764686781474,8.12899118,132.83,132.79,8.78]
[1764686781683,26.34369816,132.86,132.78,16.308864]
[1764686781860,8.12899118,132.84,132.78,16.308864]
[1764686782061,0.72,132.85,132.79,16.308864]
[1764686782281,8.12899118,132.84,132.79,16.308864]
[1764686782484,8.12899118,132.83,132.79,16.308864]
[1764686782781,8.84899118,132.85,132.79,24.43785518]
[1764686782981,8.12899118,132.84,132.79,16.308864]
[1764686783177,0.72,132.85,132.78,8.78899118]
[1764686783382,79.89765696,133.03,132.84,8.12899118]
[1764686783383,37.60106173,132.98,132.84,8.12899118]
[1764686783594,8.12899118,132.88,132.83,16.308864]
[1764686783803,8.12899118,132.89,132.83,25.09785518]
[1764686783997,8.12899118,132.9,132.84,8.12899118]
[1764686784305,0.72,132.96,132.83,25.09785518]
[1764686784606,8.12899118,132.89,132.83,16.968864]
[1764686784902,8.12899118,132.94,132.85,16.308864]
[1764686785107,8.12899118,132.92,132.86,16.88899118]
[1764686785319,8.12899118,132.92,132.86,17.54899118]
[1764686785475,8.12899118,132.91,132.86,9.42]
[1764686785980,0.72,132.98,132.9,8.12899118]
[1764686786187,0.72,132.98,132.91,8.12899118]
[1764686786500,8.12899118,132.94,132.9,8.76]
[1764686786710,8.12899118,132.91,132.84,0.66]
[1764686786889,8.12899118,132.89,132.87,16.308864]
[1764686787086,8.12899118,132.88,132.83,8.76]
[1764686787282,8.12899118,132.85,132.79,8.12899118]
[1764686787492,8.12899118,132.84,132.78,0.66]
[1764686787684,8.12899118,132.82,132.78,8.78]
[1764686787908,8.12899118,132.82,132.78,25.088864]
[1764686788279,8.12899118,132.82,132.78,9.44]
[1764686788499,0.72,132.87,132.79,0.66]
[1764686788823,0.72,132.87,132.78,8.78]
[1764686788824,8.12899118,132.82,132.78,8.78]
[1764686788996,8.12899118,132.79,132.71,0.66]
[1764686789307,8.80994492,132.85,132.72,0.66]
[1764686789308,8.12899118,132.77,132.72,0.66]
[1764686789508,16.308864,132.88,132.51,93.00465668]
[1764686789509,26.35145308,132.82,132.71,8.78]
[1764686789723,8.12899118,132.79,132.71,8.78]
[1764686790033,8.12899118,132.77,132.72,0.66]
[1764686790203,8.12899118,132.76,132.73,16.308864]
[1764686790398,8.12899118,132.78,132.72,8.12899118]
[1764686790604,8.12899118,132.79,132.74,8.12899118]
[1764686790842,0.72,132.83,132.75,8.12899118]
[1764686791127,8.12899118,132.81,132.75,16.88899118]
[1764686791302,0.72,132.83,132.78,16.308864]
[1764686791303,8.12899118,132.82,132.78,16.308864]
[1764686791633,0.72,132.83,132.78,16.308864]
[1764686791634,8.84899118,132.83,132.78,16.308864]
[1764686791830,8.12899118,132.84,132.78,31.96903782]
[1764686792006,8.12899118,132.84,132.79,0.66]
[1764686792329,0.72,132.87,132.79,0.66]
[1764686792517,9.09991423,132.84,132.79,9.75991423]
[1764686792922,9.09991423,132.85,132.79,9.75991423]
[1764686793604,8.24624872,132.87,132.8,9.42]
[1764686793806,8.24624872,132.87,132.8,18.51991423]
[1764686794002,9.09991423,132.85,132.8,8.76]
[1764686794224,9.09991423,132.84,132.8,16.308864]
[1764686794928,9.09991423,132.85,132.8,16.308864]
[1764686795133,9.09991423,132.84,132.8,16.308864]
[1764686795319,9.09991423,132.84,132.78,25.40877823]
[1764686795633,9.09991423,132.84,132.77,0.66]
[1764686795634,9.09991423,132.8,132.75,17.85991423]
[1764686795830,16.62969069,132.81,132.75,8.76]
[1764686796011,16.62969069,132.81,132.75,18.51991423]
[1764686796328,7.5295969,132.81,132.75,9.42]
[1764686796547,0.69,132.85,132.79,16.308864]
[1764686796715,9.78991423,132.85,132.79,16.308864]
[1764686796911,9.78991423,132.85,132.8,8.76]
[1764686797145,9.09991423,132.88,132.82,9.09991423]
[1764686797365,9.09991423,132.87,132.81,9.09991423]
[1764686797670,9.09991423,132.87,132.81,7.5295068]
[1764686797849,9.09991423,132.87,132.82,9.09991423]
[1764686798158,9.09991423,132.87,132.81,7.5295068]
[1764686798365,7.52621127,132.87,132.8,16.94994973]
[1764686798673,7.52621127,132.87,132.81,8.76]
[1764686798674,9.78991423,132.86,132.81,8.76]
[1764686798841,0.69,132.86,132.81,8.76]
[1764686799038,9.78991423,132.86,132.81,8.76]
[1764686799240,9.09991423,132.83,132.78,9.09991423]
[1764686799445,9.09991423,132.82,132.78,8.76]
[1764686799774,16.62833728,132.83,132.78,17.85991423]
[1764686799998,9.09991423,132.84,132.78,17.85991423]
[1764686800153,9.09991423,132.85,132.79,9.09991423]
[1764686800355,9.09991423,132.85,132.79,9.75991423]
[1764686800744,9.09991423,132.83,132.78,8.76]
[1764686800977,9.09991423,132.83,132.78,17.85991423]
[1764686801158,9.09991423,132.85,132.79,9.75991423]
[1764686801365,9.09991423,132.86,132.81,25.40877823]
[1764686801672,9.09991423,132.88,132.83,9.09991423]
[1764686801969,9.09991423,132.88,132.82,18.49991423]
[1764686802162,9.09991423,132.87,132.82,18.49991423]
[1764686802348,8.84746974,132.87,132.82,9.4]
[1764686802549,9.49746974,132.87,132.82,18.24746974]
[1764686802755,0.65,132.87,132.82,9.4]
[1764686803061,8.84746974,132.84,132.78,8.84746974]
[1764686803266,8.84746974,132.83,132.79,8.74]
[1764686803471,9.49746974,132.83,132.79,8.74]
[1764686803650,17.02645633,132.82,132.79,16.308864]
[1764686803849,9.49746974,132.82,132.77,8.74]
[1764686804053,8.84746974,132.84,132.77,33.30044072]
[1764686804378,8.84746974,132.84,132.78,0.72]
[1764686804558,8.84746974,132.85,132.8,16.308864]
[1764686804771,8.17524725,132.89,132.82,8.84746974]
[1764686805084,0.65,132.92,132.84,16.308864]
[1764686805385,8.84746974,132.88,132.84,16.308864]
[1764686805563,16.37494645,132.85,132.83,8.74]
[1764686805987,17.02494645,132.85,132.8,8.74]
[1764686806364,9.49746974,132.85,132.8,8.74]
[1764686806564,9.49746974,132.85,132.8,17.58746974]
[1764686806765,18.81321358,132.89,132.8,17.58746974]
[1764686806766,8.1753818,132.89,132.82,8.84746974]
[1764686806984,8.84746974,132.88,132.82,8.84746974]
[1764686807166,9.49746974,132.88,132.82,8.84746974]
[1764686807366,8.84746974,132.87,132.82,8.84746974]
[1764686807575,16.37422682,132.86,132.82,8.74]
[1764686807888,8.17673669,132.86,132.8,16.308864]
[1764686808087,8.17673669,132.86,132.79,8.74]
[1764686808088,0.65,132.85,132.79,8.74]
[1764686808286,8.84746974,132.84,132.79,17.58746974]
[1764686808511,8.84746974,132.84,132.79,8.74]
[1764686808695,9.49746974,132.84,132.79,8.74]
[1764686808992,8.84746974,132.81,132.74,0.72]
[1764686809181,8.84746974,132.81,132.75,25.12026073]
[1764686809371,8.84746974,132.82,132.76,8.84746974]
[1764686809564,8.84746974,132.79,132.74,0.72]
[1764686809769,8.84746974,132.79,132.75,8.74]
[1764686809991,8.84746974,132.77,132.75,8.74]
[1764686810292,8.84746974,132.78,132.73,7.53376879]
[1764686810488,8.84746974,132.78,132.74,8.74]
[1764686810700,9.49746974,132.79,132.76,16.308864]
[1764686810890,9.49746974,132.79,132.74,9.46]
[1764686811070,0.65,132.82,132.75,0.72]
[1764686811266,0.65,132.85,132.78,8.84746974]
[1764686811466,9.49746974,132.84,132.79,8.74]
[1764686811675,16.37588952,132.83,132.79,8.74]
[1764686811993,17.02588952,132.83,132.79,8.74]
[1764686812194,9.49746974,132.82,132.78,16.308864]
[1764686812404,0.65,132.82,132.78,16.308864]
[1764686812700,9.49746974,132.81,132.73,0.72]
[1764686812904,9.49746974,132.81,132.75,8.84746974]
[1764686813076,9.49746974,132.81,132.74,8.74]
[1764686813380,8.84746974,132.82,132.76,8.84746974]
[1764686813575,0.65,132.82,132.75,8.84746974]
[1764686813793,16.37834969,132.79,132.74,25.028864]
[1764686814202,9.49746974,132.81,132.75,9.56746974]
[1764686814579,9.49746974,132.81,132.76,8.84746974]
[1764686814988,0.65,132.81,132.76,8.84746974]
[1764686815187,8.84746974,132.82,132.77,0.72]
[1764686815388,0.65,132.82,132.77,0.72]
[1764686815597,0.65,132.85,132.78,17.56746974]
[1764686815797,8.84746974,132.84,132.79,8.84746974]
[1764686816109,8.84746974,132.8,132.73,9.56746974]
[1764686816406,8.84746974,132.84,132.73,8.72]
[1764686816407,8.80994492,132.82,132.73,8.72]
[1764686816906,8.84746974,132.77,132.73,8.72]
[1764686817285,0.65,132.79,132.73,17.56746974]
[1764686817480,72.70213603,132.85,132.77,8.84746974]
[1764686817481,26.34570397,132.85,132.77,8.84746974]
[1764686817690,8.84746974,132.83,132.78,16.37828567]
[1764686817903,0.65,132.84,132.79,8.84746974]
[1764686818123,8.84746974,132.84,132.79,8.84746974]
[1764686818407,8.84746974,132.83,132.78,9.56746974]
[1764686818612,0.65,132.83,132.78,8.84746974]
[1764686818794,8.84746974,132.85,132.79,25.87633374]
[1764686818989,8.84746974,132.84,132.79,16.308864]
[1764686819188,9.49746974,132.85,132.79,25.15633374]
[1764686819492,8.84746974,132.86,132.8,17.58746974]
[1764686819686,0.65,132.87,132.79,16.308864]
[1764686819687,16.3762541,132.83,132.79,16.308864]
[1764686819899,8.84746974,132.81,132.75,16.308864]
[1764686820198,8.84746974,132.78,132.75,8.74]
[1764686820398,8.84746974,132.76,132.68,0.72]
[1764686820637,8.80994492,132.8,132.69,8.84746974]
[1764686820803,164.95,132.82,132.71,8.84746974]
[1764686820804,0.65,132.79,132.71,8.84746974]
[1764686821128,8.84746974,132.8,132.74,8.84746974]
[1764686821314,8.84746974,132.77,132.75,8.74]
[1764686821625,8.80994492,132.83,132.72,8.74]
[1764686821831,0.65,132.83,132.73,0.72]
[1764686822028,8.84746974,132.81,132.75,25.15633374]
[1764686822232,0.65,132.82,132.77,8.84746974]
[1764686822410,8.84746974,132.83,132.77,8.84746974]
[1764686822614,0.65,132.83,132.77,40.52]
[1764686822812,8.84746974,132.79,132.77,56.108864]
[1764686823012,0.65,132.82,132.77,56.108864]
[1764686823302,0.65,132.84,132.77,56.828864]
[1764686823528,0.65,132.89,132.82,8.84746974]
[1764686823807,0.65,132.93,132.83,0.72]
[1764686823999,9.49746974,132.94,132.85,16.308864]
[1764686824198,26.9618328,133.02,132.89,16.308864]
[1764686824396,9.39,133.01,132.91,8.84746974]
[1764686824632,8.84746974,132.98,132.92,17.58746974]
[1764686824833,16.958864,133.0,132.88,0.72]
[1764686825045,8.84746974,132.9,132.87,8.74]
[1764686825323,8.84746974,132.89,132.87,25.048864]
[1764686825518,8.84746974,132.88,132.82,25.87633374]
[1764686825716,8.84746974,132.9,132.84,17.58746974]
[1764686826118,8.84746974,132.9,132.85,8.74]
[1764686826632,8.84746974,132.9,132.85,9.46]
[1764686826925,26.97580282,132.95,132.89,16.308864]
[1764686827106,8.84746974,132.93,132.89,16.308864]
[1764686827719,9.49746974,132.93,132.89,16.308864]
[1764686827910,9.49746974,132.92,132.89,16.308864]
[1764686828116,8.17342317,132.92,132.89,16.308864]
[1764686828320,8.84746974,132.9,132.83,16.308864]
[1764686828523,8.84746974,132.85,132.78,0.72]
[1764686828727,8.84746974,132.87,132.81,8.84746974]
[1764686828915,0.65,132.9,132.82,8.84746974]
[1764686829118,8.84746974,132.83,132.76,0.72]
[1764686829336,8.84746974,132.81,132.76,8.74]
[1764686829551,8.84746974,132.82,132.77,8.84746974]
[1764686829715,8.84746974,132.83,132.77,8.84746974]
[1764686829912,8.84746974,132.82,132.77,8.84746974]
[1764686830243,0.65,132.86,132.78,8.84746974]
[1764686830244,17.02549966,132.84,132.78,8.84746974]
[1764686830435,18.81696472,132.86,132.76,32.58086147]
[1764686830436,9.49746974,132.87,132.81,8.84746974]
[1764686830642,8.84746974,132.85,132.81,8.74]
[1764686831142,8.84746974,132.87,132.81,17.58746974]
[1764686831337,8.84746974,132.86,132.81,8.74]
[1764686831639,8.84746974,132.85,132.81,8.74]
[1764686831808,8.84746974,132.86,132.81,8.74]
[1764686832007,8.84746974,132.85,132.81,8.74]
[1764686832323,8.84746974,132.85,132.79,17.58746974]
[1764686832534,8.22558699,132.88,132.81,8.84746974]
[1764686832726,0.7,132.88,132.81,8.84746974]
[1764686833039,16.37079203,132.92,132.86,8.84746974]
[1764686833259,0.7,132.94,132.88,8.84746974]
[1764686833416,9.54746974,132.94,132.88,8.84746974]
[1764686833740,17.06986849,132.94,132.87,0.68]
[1764686833944,8.22239875,132.94,132.88,8.84746974]
[1764686834147,8.84746974,132.93,132.88,8.84746974]
[1764686834311,0.7,132.94,132.88,8.84746974]
[1764686834516,9.54746974,132.94,132.89,8.84746974]
[1764686834715,16.36915074,132.95,132.89,8.84746974]
[1764686834934,8.84746974,132.94,132.89,8.84746974]
[1764686835257,8.84746974,133.0,132.93,8.84746974]
[1764686835558,9.54746974,132.99,132.94,8.84746974]
[1764686835956,7.61615628,133.05,132.98,8.84746974]
[1764686836158,7.61615628,133.05,132.99,8.84746974]
[1764686836159,8.31615628,133.05,132.99,8.84746974]
[1764686836355,0.8,133.05,132.99,8.84746974]
[1764686836557,8.84746974,133.02,132.98,8.72]
[1764686836762,8.84746974,133.01,132.97,8.72]
[1764686836948,0.7,133.04,132.97,8.72]
[1764686837149,8.84746974,133.02,132.97,8.72]
[1764686837363,8.84746974,133.01,132.97,8.72]
[1764686837662,8.84746974,132.99,132.94,16.308864]
[1764686837850,7.51936235,132.99,132.95,8.84746974]
[1764686838047,7.51936235,132.99,132.94,9.52746974]
[1764686838351,9.54746974,132.98,132.94,8.72]
[1764686838561,8.84746974,132.97,132.92,33.87633374]
[1764686838746,0.7,132.97,132.88,0.68]
[1764686838951,0.7,132.96,132.88,9.4]
[1764686839165,8.21894294,133.0,132.93,8.84746974]
[1764686839377,8.84746974,132.99,132.93,8.84746974]
[1764686839684,8.21894294,133.0,132.93,17.56746974]
[1764686839976,8.84746974,132.98,132.93,17.56746974]
[1764686840259,8.84746974,132.98,132.93,8.72]
[1764686840260,8.84746974,132.96,132.93,8.72]
[1764686840455,9.78242049,132.97,132.92,25.708864]
[1764686840671,7.52013054,132.98,132.92,25.708864]
[1764686840985,26.31995006,132.98,132.92,34.79128449]
[1764686841156,9.08242049,132.97,132.92,34.79128449]
[1764686842170,8.31601106,133.05,132.96,9.08242049]
[1764686842465,17.39843155,133.05,132.97,8.72]
[1764686842643,0.1,133.05,132.97,8.72]
[1764686842981,9.18242049,133.05,132.98,0.68]
[1764686843150,9.88242049,133.05,133.01,16.308864]
[1764686843551,17.39839883,133.05,133.01,16.308864]
[1764686844078,9.08242049,133.03,132.97,25.39128449]
[1764686844366,9.08242049,133.03,132.98,8.7]
[1764686844574,0.7,133.04,132.98,17.78242049]
[1764686845068,9.78242049,133.04,132.98,17.78242049]
[1764686845268,9.08242049,133.02,132.9,18.81106723]
[1764686845485,9.08242049,132.99,132.93,0.68]
[1764686845681,0.7,133.01,132.95,9.08242049]
[1764686845885,9.4,133.04,132.97,9.08242049]
[1764686846175,7.5171014,133.03,132.97,9.08242049]
[1764686846343,16.59952189,133.03,132.97,9.08242049]
[1764686846543,7.5171014,133.03,132.96,9.38]
[1764686846744,9.08242049,133.02,132.97,9.08242049]
[1764686846974,8.2171014,133.03,132.97,9.08242049]
[1764686847283,36.0922754,133.03,132.97,8.7]
[1764686847485,17.29952189,133.03,132.98,9.08242049]
[1764686847776,0.1,133.05,132.99,9.08242049]
[1764686847943,9.18242049,133.05,132.99,9.08242049]
[1764686848269,0.1,133.05,132.99,0.68]
[1764686848575,0.1,133.05,133.01,16.308864]
[1764686848755,0.1,133.05,133.02,8.7]
[1764686848960,0.1,133.05,133.02,9.38]
[1764686849466,0.1,133.05,133.02,8.7]
[1764686849673,17.39850179,133.05,133.01,8.7]
[1764686850096,9.88242049,133.05,133.01,8.7]
[1764686850310,9.88242049,133.05,133.0,8.7]
[1764686850311,0.7,133.04,133.0,8.7]
[1764686850478,0.1,133.05,133.0,8.7]
[1764686850799,0.1,133.05,133.03,16.308864]
[1764686851002,0.1,133.05,133.04,8.7]
[1764686851372,0.1,133.05,133.03,16.308864]
[1764686851571,0.1,133.05,133.03,8.7]
[1764686851572,0.8,133.05,133.03,8.7]
[1764686851772,0.1,133.05,133.03,8.7]
[1764686855576,0.1,133.05,133.03,16.308864]
[1764686855775,8.85070244,133.05,133.03,8.68]
[1764686856194,0.1,133.05,133.0,16.308864]
[1764686856383,0.65,133.04,133.01,8.68]
[1764686856580,0.1,133.05,133.04,16.308864]
[1764686857688,0.1,133.1,133.04,25.08956644]
[1764686857889,0.1,133.1,133.09,8.10070244]
[1764686858189,0.1,133.1,133.07,16.308864]
[1764686858385,0.1,133.1,133.08,9.36]
[1764686858701,0.1,133.1,133.09,24.988864]
[1764686860305,0.1,133.1,133.09,41.28327896]
[1764686860608,0.1,133.1,133.09,38.45482312]
[1764686860905,0.1,133.1,133.09,30.9411106]
[1764686861123,0.1,133.1,133.09,24.988864]
[1764686861397,0.1,133.1,133.08,8.68]
[1764686861785,6.0522466,133.1,133.05,16.308864]
[1764686861985,0.78,133.1,133.04,5.2722466]
[1764686862206,7.51371252,133.09,133.05,13.9522466]
[1764686862379,0.68,133.08,133.05,8.68]
[1764686862580,5.9522466,133.08,133.05,8.68]
[1764686862992,0.1,133.1,133.05,8.68]
[1764686863195,0.1,133.1,133.06,22.2611106]
[1764686863397,0.1,133.1,133.06,16.308864]
[1764686863607,0.1,133.1,133.07,16.308864]
[1764686863908,5.2722466,133.09,133.06,8.68]
[1764686864105,5.2722466,133.09,133.04,16.308864]
[1764686864301,13.46607604,133.09,133.05,8.68]
[1764686864502,12.88558592,133.1,133.05,14.6322466]
[1764686864699,6.0522466,133.1,133.05,14.6322466]
[1764686864913,0.78,133.1,133.05,14.6322466]
[1764686865119,5.3722466,133.1,133.05,8.68]
[1764686865306,5.9522466,133.09,133.05,8.68]
[1764686866200,12.78708841,133.07,133.05,8.68]
[1764686866518,7.51484181,133.07,133.05,8.68]
[1764686866719,5.9522466,133.06,133.05,8.68]
[1764686867021,5.2722466,133.07,133.02,5.2722466]
[1764686867220,5.9522466,133.07,133.03,13.9322466]
[1764686867422,0.68,133.07,133.03,13.9322466]
[1764686867618,0.68,133.06,133.02,13.9322466]
[1764686867801,0.68,133.08,133.02,13.9322466]
[1764686867993,5.9522466,133.08,133.03,5.2722466]
[1764686868233,12.78720946,133.07,133.02,14.6122466]
[1764686868529,12.78720946,133.07,133.03,5.2722466]
[1764686868829,12.78720946,133.07,133.02,9.34]
[1764686868830,0.68,133.06,133.02,8.66]
[1764686869033,0.68,133.06,133.01,8.66]
[1764686869400,0.68,133.06,132.94,9.48994492]
[1764686869596,0.68,133.06,132.95,9.34]
[1764686869822,5.2722466,133.02,132.97,5.2722466]
[1764686870223,5.9522466,133.04,132.98,5.2722466]
[1764686870425,5.9522466,133.04,132.99,5.2722466]
[1764686870426,0.68,133.04,132.99,5.2722466]
[1764686870721,8.29343328,133.1,133.04,16.308864]
[1764686870945,8.29343328,133.1,133.05,13.9322466]
[1764686871105,0.78,133.1,133.05,8.66]
[1764686871306,0.68,133.09,133.05,8.66]
[1764686872117,0.1,133.1,133.05,8.66]
[1764686872321,7.61321585,133.1,133.06,5.2722466]
[1764686872530,0.78,133.1,133.07,5.2722466]
[1764686872736,0.78,133.1,133.06,5.2722466]
[1764686873531,0.78,133.1,133.07,5.2722466]
[1764686873742,3.7979746,133.11,133.07,5.2722466]
[1764686873943,3.7979746,133.11,133.08,5.9522466]
[1764686874127,3.7979746,133.11,133.09,13.9322466]
[1764686874447,3.7979746,133.11,133.09,8.66]
[1764686878216,3.7979746,133.11,133.09,14.6122466]
[1764686878416,3.7979746,133.11,133.09,13.9322466]
[1764686878838,2.0479746,133.11,133.1,20.03443812]
[1764686879018,0.68,133.21,133.13,16.308864]
[1764686879218,0.68,133.23,133.19,5.2722466]
[1764686879444,0.1,133.24,133.19,8.66]
[1764686879625,0.1,133.24,133.23,5.2722466]
[1764686880653,0.1,133.24,133.23,13.9322466]
[1764686880856,0.68,133.35,133.24,8.80994492]
[1764686881158,164.3,133.41,133.26,8.80994492]
[1764686881159,0.68,133.36,133.26,8.80994492]
[1764686881359,0.68,133.35,133.33,5.2722466]
[1764686882054,0.68,133.38,133.34,5.2722466]
[1764686882262,0.68,133.41,133.35,16.308864]
[1764686882432,0.68,133.41,133.39,5.2722466]
[1764686882751,0.68,133.41,133.37,16.308864]
[1764686882957,0.44134828,133.42,133.4,5.2722466]
[1764686883155,0.44134828,133.42,133.35,7.49868359]
[1764686883357,0.68,133.41,133.2,22.57]
[1764686883562,0.68,133.41,133.29,8.80994492]
[1764686884356,0.68,133.41,133.4,5.2722466]
[1764686884561,0.44134828,133.42,133.4,5.2722466]
[1764686884860,1.12134828,133.42,133.4,5.2722466]
[1764686885036,0.44134828,133.42,133.41,5.2722466]
[1764686885237,0.44134828,133.42,133.38,16.308864]
[1764686885456,0.44134828,133.42,133.41,5.2722466]
[1764686886160,8.61665897,133.42,133.35,8.68]
[1764686886366,5.2722466,133.41,133.36,5.2722466]
[1764686886662,0.68,133.41,133.37,5.2722466]
[1764686886840,0.44134828,133.42,133.39,5.2722466]
[1764686887158,7.93653315,133.42,133.37,5.2722466]
[1764686887345,0.68,133.41,133.37,5.2722466]
[1764686887552,5.2722466,133.4,133.34,16.308864]
[1764686887754,0.68,133.41,133.31,13.9522466]
[1764686887953,5.2722466,133.36,133.31,5.2722466]
[1764686888150,9.34,133.4,133.21,7.93653315]
[1764686888151,5.2722466,133.32,133.21,7.93653315]
[1764686888382,5.2722466,133.3,133.21,7.50690626]
[1764686888672,16.308864,133.37,133.24,8.80994492]
[1764686888969,7.49987587,133.34,133.23,8.80994492]
[1764686889145,12.77212247,133.34,133.29,5.2722466]
[1764686889346,5.9522466,133.33,133.25,8.68]
[1764686889566,0.68,133.32,133.28,5.2722466]
[1764686889764,0.68,133.32,133.25,8.68]
[1764686890044,5.9522466,133.32,133.26,5.2722466]
[1764686890243,5.9522466,133.32,133.27,5.2722466]
[1764686890462,0.68,133.31,133.26,5.2722466]
[1764686890778,0.68,133.33,133.28,16.308864]
[1764686891246,8.18030486,133.33,133.25,8.68]
[1764686891442,13.45255146,133.33,133.28,5.2722466]
[1764686891646,13.45255146,133.33,133.24,7.50525367]
[1764686891647,5.9922466,133.32,133.27,21.5811106]
[1764686891875,5.2722466,133.35,133.29,5.2722466]
[1764686892091,0.72,133.35,133.33,5.2722466]
[1764686892379,0.72,133.34,133.29,16.308864]
[1764686892551,5.2722466,133.33,133.27,21.5811106]
[1764686892870,5.2722466,133.33,133.24,8.66]
[1764686893074,8.22103265,133.32,133.27,16.308864]
[1764686893274,8.22103265,133.32,133.27,21.5811106]
[1764686893473,0.72,133.31,133.27,16.308864]
[1764686893673,5.9922466,133.31,133.25,21.5811106]
[1764686893885,0.72,133.31,133.23,5.2722466]
[1764686894061,5.2722466,133.28,133.23,5.2722466]
[1764686894573,0.72,133.27,133.21,5.2722466]
[1764686894792,0.72,133.27,133.12,8.66]
[1764686895010,12.77453173,133.3,133.2,5.2722466]
[1764686895179,0.72,133.3,133.28,5.2722466]
[1764686895378,0.72,133.33,133.29,5.2722466]
[1764686895589,0.72,133.32,133.28,5.2722466]
[1764686895907,5.2722466,133.29,133.24,16.308864]
[1764686896075,5.2722466,133.25,133.14,26.28811776]
[1764686896275,5.2722466,133.23,133.12,8.66]
[1764686896576,0.72,133.29,133.18,5.2722466]
[1764686896774,8.66,133.28,133.16,16.308864]
[1764686896976,5.2722466,133.23,133.18,5.2722466]
[1764686897184,5.2722466,133.23,133.18,7.50842216]
[1764686897402,5.9922466,133.22,133.17,5.2722466]
[1764686897908,0.72,133.21,133.13,8.80994492]
[1764686898104,0.72,133.21,133.12,8.66]
[1764686898276,0.72,133.21,133.03,0.75171014]